bitfinex-derivatives/quotes_SOLF0:USTF0_20250411
["timestamp","ask_amount","ask_price","bid_price","bid_amount"]
[1744379312238,0.06390342,120.77,120.75,8.2851]
[1744379312440,0.06390342,120.77,120.74,0.06098189]
[1744379312744,0.06390342,120.77,120.74,0.06002752]
[1744379312946,0.06390342,120.77,120.74,8.34582752]
[1744379313149,0.06390342,120.77,120.74,0.06002752]
[1744379313339,0.06390342,120.77,120.74,8.34602752]
[1744379313643,0.06390342,120.77,120.74,0.06002752]
[1744379314448,0.06390342,120.77,120.76,8.2848]
[1744379314649,59.64,120.85,120.77,33.35914709]
[1744379315146,8.2802,120.83,120.79,8.2822]
[1744379315344,59.64,120.85,120.79,33.35914709]
[1744379315535,8.2792,120.85,120.79,33.35914709]
[1744379315740,0.05556558,120.83,120.81,33.41524186]
[1744379315939,59.64,120.89,120.81,33.35914709]
[1744379316240,3.219e-05,120.83,120.81,33.41471435]
[1744379316435,8.6537,120.92,120.82,42.00854709]
[1744379316635,8.2782,120.86,120.82,16.9295]
[1744379317253,8.279,120.85,120.81,8.2811]
[1744379317450,0.06111588,120.85,120.76,4.2577]
[1744379317749,8.2808,120.82,120.78,8.2831]
[1744379317949,37.73114709,120.86,120.76,4.2577]
[1744379318243,8.2839,120.78,120.74,16.807]
[1744379318443,8.5943,120.85,120.74,41.88004709]
[1744379318642,0.05468584,120.81,120.78,0.05986249]
[1744379319346,0.05468584,120.81,120.78,33.41900958]
[1744379319747,0.05468584,120.81,120.8,8.2821]
[1744379320244,64.0351,120.91,120.83,8.2797]
[1744379320546,64.0351,120.91,120.81,4.4979]
[1744379320844,64.0351,120.91,120.82,33.35914709]
[1744379321250,59.64,120.91,120.84,33.35914709]
[1744379321452,0.06120343,120.88,120.86,8.2775]
[1744379322552,0.06120343,120.88,120.85,0.06082141]
[1744379323349,101.27044709,120.96,120.86,33.35914709]
[1744379323651,67.9113,120.96,120.86,37.84804709]
[1744379323853,67.9113,120.96,120.89,8.2754]
[1744379324249,33.35914709,120.95,120.84,33.35914709]
[1744379324553,0.05795312,120.91,120.88,0.06248687]
[1744379325453,59.67795312,120.91,120.88,0.06248687]
[1744379326655,93.03710021,120.91,120.88,0.06248687]
[1744379326856,4.5325,120.9,120.82,4.1286]
[1744379327063,16.964,120.9,120.82,4.1286]
[1744379327353,16.964,120.9,120.84,8.2791]
[1744379327651,8.2764,120.89,120.82,4.1286]
[1744379327855,8.6885,120.9,120.81,4.2326]
[1744379328151,0.06230754,120.87,120.84,0.05848739]
[1744379328946,0.06230754,120.87,120.85,8.2785]
[1744379329149,0.06230754,120.87,120.84,0.05848739]
[1744379329353,59.62,120.86,120.84,0.05848739]
[1744379331053,8.2786,120.85,120.84,0.05848739]
[1744379331253,92.97914709,120.86,120.77,11.09833]
[1744379331457,37.53474709,120.84,120.77,11.09833]
[1744379331655,4.4936,120.83,120.77,11.09833]
[1744379332458,0.05803942,120.81,120.79,0.06135634]
[1744379332962,0.05803942,120.81,120.8,8.2821]
[1744379333863,0.05803942,120.81,120.79,8.34385634]
[1744379334063,0.05803942,120.81,120.79,0.06135634]
[1744379334460,0.05803942,120.81,120.8,8.2821]
[1744379335358,59.64,120.91,120.8,41.63914709]
[1744379335567,59.64,120.91,120.82,33.35914709]
[1744379335761,59.64,120.91,120.87,8.2771]
[1744379336066,67.9149,120.91,120.87,8.2771]
[1744379336261,59.64,120.91,120.82,33.35914709]
[1744379336456,0.05334246,120.9,120.87,0.05739355]
[1744379336662,59.64,120.91,120.83,33.35914709]
[1744379336861,0.05344243,120.9,120.87,0.05546091]
[1744379337969,0.05344243,120.9,120.88,8.2762]
[1744379338267,0.05344243,120.9,120.87,0.05546091]
[1744379338468,0.05344243,120.9,120.89,8.2759]
[1744379338767,0.05344243,120.9,120.87,0.05546091]
[1744379339062,0.05344243,120.9,120.88,8.2766]
[1744379339559,0.05344243,120.9,120.87,0.05546091]
[1744379339768,33.41258952,120.9,120.81,8.4268]
[1744379340065,8.2797,120.84,120.8,8.2815]
[1744379340275,59.58,120.83,120.76,4.5428]
[1744379341064,0.05872185,120.81,120.78,0.05905568]
[1744379341268,59.58,120.83,120.82,4.15923815]
[1744379342064,67.86,120.83,120.82,4.15923815]
[1744379342766,59.58,120.83,120.75,8.8373]
[1744379343268,67.8605,120.83,120.75,8.8373]
[1744379343457,59.58,120.83,120.75,8.8373]
[1744379343861,8.281,120.82,120.78,8.283]
[1744379344168,0.06193117,120.8,120.78,0.0535552]
[1744379344372,8.2828,120.79,120.78,0.0535552]
[1744379344665,33.42107826,120.8,120.7,8.3841]
[1744379344858,33.35914709,120.78,120.7,4.2124]
[1744379345063,33.35914709,120.76,120.68,45.51431077]
[1744379345465,33.35914709,120.74,120.68,45.51431077]
[1744379345670,0.05353859,120.73,120.71,0.05529718]
[1744379346668,67.8876,120.72,120.71,0.05529718]
[1744379346869,59.6,120.72,120.65,8.3833]
[1744379347070,64.1092,120.72,120.65,12.5045]
[1744379347369,97.46834709,120.72,120.63,45.51431077]
[1744379347770,8.2901,120.69,120.63,45.51431077]
[1744379348070,8.34628182,120.69,120.66,0.05764148]
[1744379348269,0.05618182,120.69,120.66,0.05764148]
[1744379348758,8.291,120.67,120.66,0.05764148]
[1744379349161,67.911,120.67,120.66,0.05764148]
[1744379349772,59.62,120.67,120.66,0.05764148]
[1744379350172,59.62,120.67,120.59,4.5245]
[1744379350479,33.35914709,120.66,120.61,8.2947]
[1744379350669,59.62,120.67,120.61,8.2947]
[1744379350870,59.62,120.67,120.59,4.5245]
[1744379351062,59.62,120.67,120.63,8.2936]
[1744379351268,59.62,120.67,120.6,33.35914709]
[1744379351473,0.06030035,120.66,120.64,0.05928986]
[1744379351967,8.2924,120.65,120.64,0.05928986]
[1744379352369,8.2934,120.64,120.59,4.5245]
[1744379352571,59.62,120.67,120.6,33.35914709]
[1744379353279,59.62,120.67,120.63,8.2936]
[1744379353469,0.05799174,120.65,120.63,8.2936]
[1744379353670,0.05799174,120.65,120.62,0.05603856]
[1744379353865,0.05799174,120.65,120.62,33.41518565]
[1744379354171,59.66,120.72,120.64,33.35914709]
[1744379354372,596.7,120.74,120.66,33.35914709]
[1744379354373,600.86212,120.74,120.66,33.35914709]
[1744379354672,8.2875,120.73,120.66,33.35914709]
[1744379354975,4.16212,120.74,120.69,8.2892]
[1744379355182,0.06139697,120.71,120.68,0.05915762]
[1744379355569,0.06139697,120.71,120.68,33.41830471]
[1744379355771,0.06139697,120.71,120.68,0.05915762]
[1744379356478,4.16212,120.74,120.69,33.35914709]
[1744379356670,4.16212,120.74,120.71,33.35914709]
[1744379356975,4.16212,120.74,120.72,12.7139]
[1744379357378,4.16212,120.74,120.72,8.2873]
[1744379357580,4.16212,120.74,120.69,33.35914709]
[1744379357779,4.21863851,120.74,120.72,0.05567743]
[1744379357972,4.21863851,120.74,120.73,8.2869]
[1744379358378,59.66,120.81,120.73,41.63914709]
[1744379358586,8.2816,120.81,120.74,4.4266]
[1744379358987,8.2816,120.81,120.77,8.2838]
[1744379359293,8.2816,120.81,120.74,8.7329]
[1744379359491,8.34354783,120.8,120.78,0.06250143]
[1744379360088,0.06124783,120.8,120.78,0.06250143]
[1744379360288,8.2828,120.79,120.78,0.06250143]
[1744379360987,8.34384783,120.8,120.78,0.06250143]
[1744379361188,8.34384783,120.8,120.57,223.20511295]
[1744379361189,0.06124783,120.8,120.67,91.33914709]
[1744379361393,8.2863,120.74,120.68,41.77384709]
[1744379361591,8.7788,120.83,120.7,33.35914709]
[1744379361592,33.35914709,120.82,120.7,33.35914709]
[1744379361888,33.35914709,120.82,120.72,33.35914709]
[1744379362092,8.2833,120.79,120.72,33.35914709]
[1744379362288,8.2833,120.79,120.75,8.2851]
[1744379362491,0.05918265,120.77,120.74,33.41504071]
[1744379362688,62.2762,120.83,120.79,8.2827]
[1744379362888,62.2762,120.83,120.76,33.35914709]
[1744379363092,8.2817,120.81,120.76,33.35914709]
[1744379363299,8.2817,120.81,120.78,8.2832]
[1744379363592,62.2762,120.83,120.75,8.4147]
[1744379363895,0.06038688,120.8,120.78,0.05260686]
[1744379365391,8.34288688,120.8,120.78,0.05260686]
[1744379366796,8.2828,120.79,120.78,0.05260686]
[1744379367797,8.28,120.79,120.69,8.8948]
[1744379368098,33.35914709,120.77,120.7,8.2889]
[1744379368296,57.96,120.76,120.69,8.8948]
[1744379368491,62.1404,120.76,120.69,8.2893]
[1744379368798,0.05262104,120.74,120.71,0.06174212]
[1744379369100,8.288,120.72,120.71,0.06174212]
[1744379369598,0.05262104,120.74,120.71,0.06174212]
[1744379370598,0.05262104,120.74,120.72,8.2876]
[1744379372301,0.05262104,120.74,120.71,0.06174212]
[1744379374100,8.2869,120.73,120.71,0.06174212]
[1744379374291,0.05262104,120.74,120.71,0.06174212]
[1744379374492,8.2876,120.72,120.71,0.06174212]
[1744379374896,56.3,120.72,120.62,33.35914709]
[1744379375202,56.3,120.72,120.64,33.35914709]
[1744379375701,56.3,120.76,120.64,33.35914709]
[1744379375895,0.0591445,120.71,120.69,0.05685248]
[1744379376096,8.2865,120.74,120.69,0.05685248]
[1744379376299,0.05829724,120.71,120.69,0.05685248]
[1744379376701,0.05829724,120.71,120.7,8.2889]
[1744379376905,0.05829724,120.71,120.69,0.05685248]
[1744379377796,0.05829724,120.71,120.7,8.2889]
[1744379377993,0.05829724,120.71,120.69,0.05685248]
[1744379378997,0.05829724,120.71,120.69,8.34605248]
[1744379379202,0.05829724,120.71,120.69,0.05685248]
[1744379379395,0.05829724,120.71,120.69,8.34615248]
[1744379379597,0.05829724,120.71,120.69,0.05685248]
[1744379380103,8.2889,120.7,120.69,0.05685248]
[1744379380995,56.35829724,120.71,120.63,8.7125]
[1744379381196,20.56479408,120.7,120.61,4.2679]
[1744379381403,8.2926,120.65,120.61,4.2679]
[1744379381605,20.56479408,120.7,120.61,4.2679]
[1744379382007,0.05959437,120.67,120.64,0.05455237]
[1744379382701,0.05959437,120.67,120.66,8.2917]
[1744379385009,59.0935,120.73,120.65,4.2084]
[1744379385309,8.2897,120.69,120.65,4.2084]
[1744379385502,8.2897,120.69,120.66,8.2915]
[1744379385702,59.0935,120.73,120.65,4.2084]
[1744379385907,59.0935,120.73,120.65,37.63270329]
[1744379386104,0.05287061,120.7,120.68,8.35188438]
[1744379386500,0.05287061,120.7,120.68,0.06218438]
[1744379386706,0.05287061,120.7,120.69,8.2896]
[1744379386908,8.2857,120.75,120.68,0.06218438]
[1744379387104,58.838,120.77,120.67,88.12430329]
[1744379387303,58.838,120.77,120.69,33.42430329]
[1744379387705,58.838,120.77,120.71,8.288]
[1744379387904,58.838,120.77,120.69,33.42430329]
[1744379388111,0.05279214,120.75,120.73,0.06118382]
[1744379388305,8.33869214,120.75,120.73,0.06118382]
[1744379388513,33.47709543,120.75,120.65,37.63270329]
[1744379388710,33.42430329,120.75,120.65,37.63270329]
[1744379389205,33.42430329,120.75,120.65,4.2084]
[1744379389516,33.42430329,120.73,120.65,4.2084]
[1744379389815,0.05603226,120.71,120.69,0.06322237]
[1744379390709,8.34493226,120.71,120.69,0.06322237]
[1744379391112,0.05603226,120.71,120.69,8.35232237]
[1744379391308,0.05603226,120.71,120.69,0.06322237]
[1744379392311,8.34443226,120.71,120.69,0.06322237]
[1744379392706,0.05603226,120.71,120.69,0.06322237]
[1744379393411,8.34453226,120.71,120.69,0.06322237]
[1744379393712,0.05603226,120.71,120.69,0.06322237]
[1744379393915,33.48033555,120.71,120.64,4.2262]
[1744379394506,8.2908,120.68,120.64,12.5188]
[1744379394712,33.42430329,120.71,120.64,4.2262]
[1744379394914,37.95690329,120.73,120.64,4.2262]
[1744379395212,8.34439005,120.69,120.66,0.05369041]
[1744379395710,8.2904,120.68,120.66,0.05369041]
[1744379395911,0.05419005,120.69,120.66,0.05369041]
[1744379396312,0.05419005,120.69,120.67,33.42430329]
[1744379396714,0.05419005,120.69,120.68,8.2903]
[1744379396916,54.72,120.74,120.67,37.72680329]
[1744379397313,8.2874,120.73,120.67,37.72680329]
[1744379397519,4.138,120.77,120.67,37.72680329]
[1744379397720,4.138,120.77,120.68,4.3227]
[1744379398117,0.06296396,120.74,120.71,0.05704554]
[1744379398920,8.34946396,120.74,120.71,8.34494554]
[1744379399221,0.06296396,120.74,120.71,0.05704554]
[1744379399614,8.2876,120.72,120.71,0.05704554]
[1744379399916,0.06296396,120.74,120.64,4.2262]
[1744379400215,4.3062,120.71,120.64,12.5188]
[1744379400411,4.3062,120.71,120.61,71.75628375]
[1744379400614,37.90400329,120.7,120.61,71.75628375]
[1744379400813,0.05549183,120.67,120.64,0.05999262]
[1744379401015,8.292,120.66,120.64,0.05999262]
[1744379401317,0.05549183,120.67,120.64,0.05999262]
[1744379402222,8.2944,120.62,120.61,71.75628375]
[1744379402620,33.42430329,120.66,120.61,71.75628375]
[1744379403021,88.14430329,120.68,120.61,71.75628375]
[1744379403221,0.05852383,120.65,120.57,33.42430329]
[1744379403420,8.2926,120.65,120.62,8.2944]
[1744379403621,0.0530607,120.62,120.57,33.42430329]
[1744379403818,0.0567013,120.61,120.57,33.42430329]
[1744379404120,0.06138712,120.6,120.56,45.80569178]
[1744379405021,54.72,120.67,120.57,33.42430329]
[1744379405333,54.72,120.67,120.55,33.42430329]
[1744379405628,8.2942,120.63,120.6,8.2955]
[1744379405926,54.72,120.67,120.57,33.42430329]
[1744379406225,0.05610756,120.63,120.61,0.0582461]
[1744379407127,0.05610756,120.63,120.61,8.3528461]
[1744379407325,4.2704,120.69,120.61,33.48254939]
[1744379407525,651.42,120.72,120.63,33.42430329]
[1744379407725,8.29,120.69,120.66,8.2914]
[1744379408329,12.6515,120.75,120.65,33.42430329]
[1744379408516,0.0633552,120.69,120.67,33.42430329]
[1744379408724,8.5097,120.75,120.67,33.42430329]
[1744379408917,8.5097,120.75,120.66,4.1396]
[1744379409118,33.42430329,120.74,120.66,4.1396]
[1744379409325,8.292,120.66,120.62,12.5628]
[1744379409727,59.0335,120.71,120.62,4.269]
[1744379409929,59.0335,120.71,120.63,0.05697474]
[1744379410229,59.0335,120.71,120.62,59.009]
[1744379410230,0.05607314,120.68,120.62,59.009]
[1744379410531,8.34667314,120.68,120.66,0.06015556]
[1744379410731,0.05607314,120.68,120.66,0.06015556]
[1744379411030,0.05607314,120.68,120.67,8.291]
[1744379411331,0.05607314,120.68,120.66,0.06015556]
[1744379411530,0.05607314,120.68,120.66,8.35145556]
[1744379412330,0.05607314,120.68,120.66,0.06015556]
[1744379412626,8.291,120.67,120.66,0.06015556]
[1744379413030,33.48037643,120.68,120.58,405.02048488]
[1744379413330,4.5797,120.67,120.58,57.6634]
[1744379413929,4.5797,120.67,120.58,61.9451]
[1744379414124,0.06286273,120.64,120.61,0.05617012]
[1744379415431,33.48716602,120.64,120.55,45.80569178]
[1744379415632,53.42,120.63,120.55,45.80569178]
[1744379415826,8.2968,120.59,120.56,8.2982]
[1744379416028,53.42,120.63,120.56,8.2982]
[1744379416327,8.2968,120.59,120.55,54.10459178]
[1744379416531,0.05438587,120.61,120.58,0.05740581]
[1744379416728,53.42,120.63,120.58,0.05740581]
[1744379416928,8.2969,120.59,120.58,0.05740581]
[1744379417129,0.05390358,120.61,120.55,45.80569178]
[1744379417331,33.42430329,120.6,120.55,45.80569178]
[1744379417630,33.42430329,120.6,120.51,4.201]
[1744379417830,33.42430329,120.6,120.5,64.87142294]
[1744379418234,33.42430329,120.6,120.52,8.301]
[1744379418235,8.35271947,120.56,120.52,8.301]
[1744379418422,0.05351947,120.56,120.5,11.45142294]
[1744379418825,8.3007,120.53,120.5,19.75372294]
[1744379419033,4.1322,120.61,120.5,11.45142294]
[1744379419034,33.42430329,120.54,120.5,11.45142294]
[1744379419337,8.302,120.51,120.5,11.45142294]
[1744379419627,8.302,120.51,120.48,91.61138357]
[1744379419628,33.42430329,120.52,120.48,79.12548357]
[1744379419832,53.49908456,120.53,120.48,52.27558357]
[1744379419833,33.42430329,120.49,120.48,52.27558357]
[1744379420127,41.72770329,120.49,120.48,37.96578357]
[1744379420332,33.42430329,120.49,120.47,137.41707535]
[1744379420539,53.44,120.48,120.4,54.07519029]
[1744379420837,33.42430329,120.47,120.4,45.76579029]
[1744379421134,0.06152592,120.45,120.4,45.76579029]
[1744379421536,8.308,120.43,120.4,45.76579029]
[1744379421832,0.06152592,120.45,120.4,45.76579029]
[1744379421833,33.48582921,120.45,120.4,45.76579029]
[1744379422427,0.06152592,120.45,120.4,45.76579029]
[1744379422629,33.42430329,120.44,120.4,45.76579029]
[1744379422834,53.48,120.43,120.4,45.76579029]
[1744379423128,33.42430329,120.42,120.4,19.75649029]
[1744379423332,33.42430329,120.42,120.4,9.029e-05]
[1744379423527,8.3089,120.41,120.4,9.029e-05]
[1744379423724,33.42430329,120.39,120.31,8.4798]
[1744379423930,53.48,120.38,120.31,8.4798]
[1744379424134,0.06103748,120.36,120.31,8.4798]
[1744379424531,8.3153,120.32,120.25,1.44629387]
[1744379424836,86.90430329,120.33,120.23,13.1033]
[1744379425136,0.06179755,120.3,120.28,8.3175]
[1744379425335,0.06179755,120.3,120.23,13.1033]
[1744379426034,0.06179755,120.3,120.26,8.3188]
[1744379426231,0.06179755,120.3,120.23,13.1033]
[1744379426537,33.48610084,120.3,120.23,13.1033]
[1744379426740,33.42430329,120.28,120.17,53.5]
[1744379426943,51.9,120.29,120.21,33.42430329]
[1744379427240,0.05963896,120.24,120.21,33.42430329]
[1744379427441,8.3165,120.3,120.21,33.42430329]
[1744379427637,8.3165,120.3,120.25,8.3195]
[1744379427838,33.42430329,120.32,120.21,33.42430329]
[1744379428343,8.3165,120.3,120.21,33.42430329]
[1744379428546,0.05325681,120.28,120.25,0.06056514]
[1744379428942,8.37185681,120.28,120.25,0.06056514]
[1744379429939,8.37185681,120.28,120.19,66.4962]
[1744379430135,33.42430329,120.3,120.19,4.4962]
[1744379430346,33.42430329,120.28,120.19,4.4962]
[1744379430535,51.92,120.27,120.19,4.4962]
[1744379430735,8.3205,120.25,120.2,8.323]
[1744379431139,8.3211,120.24,120.19,4.4962]
[1744379431341,8.37803722,120.24,120.19,4.4962]
[1744379431642,8.37803722,120.24,120.18,8.6202]
[1744379431643,33.48124051,120.24,120.18,8.6202]
[1744379431847,33.48124051,120.24,120.12,33.42430329]
[1744379432147,33.42430329,120.24,120.12,42.14860329]
[1744379432348,0.06108942,120.19,120.12,42.14860329]
[1744379432543,0.06108942,120.19,120.13,4.3712]
[1744379433947,0.06108942,120.19,120.14,33.42430329]
[1744379434148,0.06108942,120.19,120.13,4.3712]
[1744379435640,0.06108942,120.19,120.14,8.3271]
[1744379436348,33.42430329,120.18,120.08,1.44837058]
[1744379436549,33.42430329,120.16,120.05,33.42430329]
[1744379436843,0.05571708,120.14,120.05,33.42430329]
[1744379437049,51.98,120.16,120.07,33.42430329]
[1744379437246,0.06066243,120.11,120.08,4.4607]
[1744379437843,0.06066243,120.11,120.1,8.3303]
[1744379438043,51.98,120.16,120.1,8.3303]
[1744379438752,51.98,120.16,120.09,8.3308]
[1744379438955,51.98,120.16,120.08,4.4607]
[1744379438956,8.3281,120.14,120.08,4.4607]
[1744379439146,8.38563104,120.14,120.11,0.05459434]
[1744379439750,0.05753104,120.14,120.11,0.05459434]
[1744379439953,33.42430329,120.13,120.11,0.05459434]
[1744379440349,60.329,120.12,120.11,0.05459434]
[1744379440543,52.0,120.12,120.0,33.42430329]
[1744379440743,60.3292,120.12,120.04,4.3106]
[1744379440942,50.42,120.16,120.09,8.331]
[1744379441141,33.42430329,120.15,120.05,50.42]
[1744379441353,33.42430329,120.13,120.05,50.42]
[1744379441552,0.05998072,120.1,120.06,8.3326]
[1744379441753,0.05998072,120.1,120.05,54.9377]
[1744379442154,0.05998072,120.1,120.06,8.3329]
[1744379442354,8.39078072,120.1,120.05,54.9377]
[1744379442555,0.05998072,120.1,120.05,54.9377]
[1744379443559,0.05998072,120.1,120.07,8.3319]
[1744379444152,8.39028072,120.1,120.05,54.9377]
[1744379444357,0.05998072,120.1,120.05,4.5177]
[1744379444852,8.3321,120.08,120.05,4.5177]
[1744379445258,0.05998072,120.1,120.05,4.5177]
[1744379446059,0.05998072,120.1,120.07,8.3324]
[1744379446453,83.86430329,120.13,120.06,50.44]
[1744379447259,33.42430329,120.11,120.05,4.5177]
[1744379447756,0.0562836,120.09,120.07,0.06086121]
[1744379448854,8.3317,120.08,120.07,0.06086121]
[1744379449558,83.92058689,120.09,120.0,1.44930554]
[1744379449860,83.92058689,120.09,120.02,8.3356]
[1744379449861,33.42430329,120.07,120.02,8.3356]
[1744379450059,33.42430329,120.03,120.0,1.44930554]
[1744379450357,33.42430329,120.01,119.89,50.46]
[1744379450558,33.42430329,119.97,119.94,8.341]
[1744379450954,33.42430329,119.97,119.93,8.3416]
[1744379451155,0.0573545,119.97,119.92,4.2723]
[1744379451655,41.82135779,119.97,119.92,4.2723]
[1744379451856,41.82135779,119.97,119.9,4.4442]
[1744379451857,33.42430329,119.95,119.9,4.4442]
[1744379452061,0.0573545,119.97,119.9,8.9437]
[1744379452261,632.94430329,120.01,119.9,42.36800329]
[1744379452452,33.42430329,119.99,119.93,8.3421]
[1744379452760,0.05783595,119.97,119.93,8.3421]
[1744379453062,33.42430329,120.01,119.95,8.3403]
[1744379453256,8.3377,120.0,119.95,8.3403]
[1744379453451,33.42430329,120.03,119.93,50.48]
[1744379453656,33.42430329,120.05,119.93,50.48]
[1744379453954,8.3362,120.02,119.93,50.48]
[1744379454157,0.0531964,120.0,119.98,0.0601763]
[1744379454354,33.42430329,120.03,119.98,0.0601763]
[1744379454558,0.05692615,120.0,119.98,0.0601763]
[1744379454758,33.42430329,120.01,119.98,0.0601763]
[1744379454955,0.06000466,120.0,119.98,0.0601763]
[1744379455563,8.39770466,120.0,119.98,0.0601763]
[1744379455761,0.06000466,120.0,119.98,0.0601763]
[1744379456659,0.06000466,120.0,119.96,50.48983227]
[1744379456863,33.42430329,120.05,119.97,9.0022]
[1744379457159,8.3349,120.04,119.97,9.0022]
[1744379457363,33.42430329,120.05,119.99,8.2672553]
[1744379457563,8.3368,120.01,119.97,9.0022]
[1744379457751,33.42430329,120.05,119.92,50.5]
[1744379457951,0.05998928,120.0,119.97,0.05697542]
[1744379458153,0.05998928,120.0,119.94,4.5088]
[1744379458363,0.05998928,120.0,119.97,0.05383781]
[1744379459861,8.39768928,120.0,119.97,0.05383781]
[1744379460158,0.05998928,120.0,119.97,0.05383781]
[1744379460361,33.42430329,120.07,120.01,8.336]
[1744379460563,50.5,120.15,120.01,83.92430329]
[1744379460762,33.42430329,120.13,120.02,42.39280329]
[1744379460956,8.3314,120.09,120.02,42.39280329]
[1744379461160,33.42430329,120.07,120.02,8.9685]
[1744379461459,8.3354,120.03,119.98,8.3382]
[1744379461962,0.05572607,120.02,119.99,0.05680921]
[1744379462364,33.42430329,120.05,119.99,0.05680921]
[1744379462567,33.42430329,120.06,119.99,0.05680921]
[1744379462763,33.42430329,120.08,119.99,0.05680921]
[1744379462959,50.5,120.1,119.98,83.92430329]
[1744379463158,33.42430329,120.09,119.98,83.92430329]
[1744379463355,33.42430329,120.13,120.02,33.42430329]
[1744379463662,33.42430329,120.12,120.03,54.9382]
[1744379463853,0.05463308,120.09,120.06,0.06259778]
[1744379464165,8.3318,120.08,120.06,0.06259778]
[1744379464367,0.05463308,120.09,120.06,0.06259778]
[1744379465265,0.05463308,120.09,120.07,8.332]
[1744379465666,83.92430329,120.14,120.06,50.54259778]
[1744379465865,8.3319,120.08,120.04,12.8629]
[1744379466061,33.42430329,120.12,120.04,4.5288]
[1744379466663,0.05424682,120.09,120.07,0.05739524]
[1744379467769,79.26932329,120.18,120.07,0.05739524]
[1744379467770,633.36430329,120.17,120.07,0.05739524]
[1744379468065,33.42430329,120.13,120.05,54.9044]
[1744379468260,8.33,120.11,120.07,8.3321]
[1744379468463,633.36430329,120.17,120.05,54.9044]
[1744379468659,34.35426883,120.14,120.05,54.9044]
[1744379468862,0.06224044,120.12,120.1,0.05438185]
[1744379469764,34.35426883,120.14,120.12,8.3287]
[1744379469961,34.35426883,120.14,120.1,0.05438185]
[1744379470263,8.3296,120.11,120.1,0.05438185]
[1744379470468,92.23390329,120.11,120.1,0.05438185]
[1744379470860,634.23426883,120.14,120.1,0.05438185]
[1744379471065,0.06087735,120.12,120.1,0.05438185]
[1744379472271,41.75390329,120.11,120.1,0.05438185]
[1744379473565,34.41514618,120.12,120.1,0.05438185]
[1744379474271,8.3296,120.11,120.1,0.05438185]
[1744379474773,76.16874947,120.12,120.1,0.05438185]
[1744379474970,34.41514618,120.12,120.1,0.05438185]
[1744379475870,22.545463,120.11,120.1,0.05438185]
[1744379476877,22.545463,120.11,120.1,8.38468185]
[1744379477174,15.651063,120.11,120.1,8.38468185]
[1744379477671,1.861463,120.11,120.1,8.38468185]
[1744379478071,0.06087735,120.12,120.11,8.3296]
[1744379478466,34.35426883,120.14,120.13,8.3283]
[1744379478668,79.51978357,120.15,120.12,49.12]
[1744379478972,73.23898357,120.15,120.12,49.12]
[1744379479381,73.23898357,120.15,120.1,0.05438185]
[1744379479768,0.05572015,120.14,120.11,8.3293]
[1744379480180,0.05572015,120.14,120.11,8.3295]
[1744379480376,0.05572015,120.14,120.1,0.05438185]
[1744379481074,33.48002344,120.14,120.1,0.05438185]
[1744379481273,33.42430329,120.12,120.05,8.3334]
[1744379481469,33.42430329,120.1,120.02,49.12]
[1744379482283,33.42430329,120.1,119.99,33.42430329]
[1744379482480,0.05391434,120.07,120.05,0.05409687]
[1744379483574,8.38641434,120.07,120.05,0.05409687]
[1744379483877,0.05391434,120.07,120.05,0.05409687]
[1744379484578,8.3346,120.04,119.98,49.12]
[1744379484880,82.54430329,120.07,119.98,49.12]
[1744379485074,90.87700329,120.07,120.04,8.3344]
[1744379485381,49.12,120.07,119.98,111.12]
[1744379485583,8.3346,120.04,119.98,49.12]
[1744379485880,0.06380399,120.04,120.01,0.05446944]
[1744379486080,0.06380399,120.04,120.03,8.3352]
[1744379486480,0.06380399,120.04,120.01,0.05446944]
[1744379486678,0.06380399,120.04,120.01,8.39056944]
[1744379486878,0.06380399,120.04,120.01,0.05446944]
[1744379487179,0.06380399,120.04,120.03,8.3352]
[1744379487380,0.06380399,120.04,120.01,0.05446944]
[1744379487783,0.06380399,120.04,120.02,8.3355]
[1744379487976,0.06380399,120.04,120.01,0.05446944]
[1744379489481,0.06380399,120.04,120.01,8.39086944]
[1744379489787,0.06380399,120.04,120.01,0.05446944]
[1744379490585,0.06380399,120.04,120.03,8.3352]
[1744379490779,0.06380399,120.04,120.01,0.05446944]
[1744379491191,0.06380399,120.04,120.02,8.3352]
[1744379491385,0.06380399,120.04,120.01,0.05446944]
[1744379491585,3.99e-06,120.04,120.03,8.3352]
[1744379494488,3.99e-06,120.04,120.03,99.23950329]
[1744379494875,3.99e-06,120.04,120.03,57.4752]